Cogmind - Beta 15 @@@ ROGUE MODE // 2025.07.03 @ 18:38:29 Player: Bec Result: Destroyed by P-70 Sage with Tesla Rifle Performance ------------- Evolutions (5) 2500 Regions Visited (4) 800 Robots Destroyed (20) 100 Value Destroyed (707) 707 Prototype IDs (0) 0 Alien Tech Used (0) 0 Bonus (0) 0 TOTAL SCORE: 4107 Bonus ------- None Cogmind --------- Core Integrity 0/1000 Matter 19/300 Energy 85/100 System Corruption 5% Temperature Cool (0) Movement Core (1450) Ox28 Location -5/Factory Parts ------- > --- POWER (2) -------- (None) > --- PROPULSION (6) --- (None) > --- UTILITY (6) ------ Small Storage Unit Huge Storage Unit Advanced Signal Interpreter > --- WEAPON (3) ------- (None) > --- INVENTORY (25) --- Flight Unit Flight Unit Flight Unit Improved Heat Sink Assault Rifle Peak State ------------ > --- POWER ------------ Neutrino Core Neutrino Core > --- PROPULSION ------- Carbon-fiber Leg Myomer Leg > --- UTILITY ---------- Huge Storage Unit Advanced Signal Interpreter Hardened Light Armor Plating Hardlight Generator > --- WEAPON ----------- Light Assault Rifle Light Assault Rifle Heavy Mace > --- INVENTORY -------- Improved Deuterium Engine Micro Fission Core Flight Unit Flight Unit Flight Unit Field Propulsion Drive Improved Heat Sink Small Storage Unit Assault Rifle Subdweller Machine Gun Subdweller Machine Gun Grenade Launcher [Rating: 40] Favorites ----------- Power Subdweller Power Source Engine Subdweller Power Source Power Core Light Nuclear Core Propulsion Light Treads Treads Light Treads Leg Myomer Leg Flight Unit Flight Unit Utility Huge Storage Unit Device Hardlight Generator Storage Huge Storage Unit Processor Signal Interpreter Protection Hardened Light Armor Plating Weapon Assault Rifle Ballistic Gun Assault Rifle Launcher Grenade Launcher Impact Weapon Heavy Mace Build | -11 -10 -10 -7 -5 ------- Run | Yrd Mat Sub Scr Fac Slots Evolved 10 | . . . . 10 Power 1 | . . . . 1 Propulsion 4 | . . . . 4 Utility 4 | . . . . 4 Weapon 1 | . . . . 1 Parts Attached 39 | 5 6 8 3 17 Power 10 | . 1 3 3 3 Engine 5 | . . 2 3 . Core 5 | . 1 1 . 3 Reactor . | . . . . . Propulsion 8 | 2 . 2 . 4 Treads 2 | 2 . . . . Leg 2 | . . 2 . . Wheel . | . . . . . Hover . | . . . . . Flight 4 | . . . . 4 Utility 9 | 1 3 . . 5 Device 3 | . . . . 3 Storage 2 | 1 1 . . . Processor 3 | . 2 . . 1 Hackware . | . . . . . Protection 1 | . . . . 1 Artifact . | . . . . . Weapon 12 | 2 2 3 . 5 Energy Gun . | . . . . . Energy Cannon . | . . . . . Ballistic Gun 10 | 2 2 2 . 4 Ballistic Cannon . | . . . . . Launcher 1 | . . 1 . . Special Weapon . | . . . . . Impact Weapon 1 | . . . . 1 Slashing Weapon . | . . . . . Piercing Weapon . | . . . . . Special Melee Weapon . | . . . . . Unidentified Prototypes . | . . . . . Parts Lost 23 | . 1 5 . 17 Power 6 | . . 2 . 4 Propulsion 5 | . 1 1 . 3 Utility 3 | . . . . 3 Weapon 9 | . . 2 . 7 Highest Loss Streak 16 | . 1 5 . 16 To Critical Strikes . | . . . . . Average Backups 11 | 1 7 12 14 10 Power . | 1 1 . . . Propulsion 2 | . 1 3 3 3 Utility 2 | . 1 3 3 2 Weapon 5 | . 2 5 7 4 Tool/Special . | . . . . . Unused Backups 2 | . 2 . . . Power 2 | . 2 . . . Propulsion . | . . . . . Utility . | . . . . . Weapon . | . . . . . Tool/Special . | . . . . . Average Slot Usage (%) 77 | . 90 85 67 61 Engine 5 | . . 6 10 3 Core 5 | . 10 6 . 5 Treads 8 | . 25 6 . . Leg 13 | . . 8 28 10 Storage 12 | . 14 14 14 5 Processor 11 | . 10 14 14 5 Ballistic Gun 16 | . 28 24 . 15 Peak Build Rating 40 | 5 11 18 18 40 Average Rating 14 | 3 8 11 15 31 On Entrance 10 | . 5 9 18 18 Naked Turns . | . . . . . Heaviest Build 123 | 8 89 90 90 123 Greatest Support 40 | 40 40 40 40 40 Greatest Overweight (x) 29 | . 4 29 2 12 Average Overweight (x) 1 | . . 4 1 2 Largest Inventory Capacity 25 | 8 25 25 25 25 Average Capacity 22 | 6 15 25 25 24 Most Carried 16 | 5 14 14 16 14 Average Carried 11 | 1 7 12 14 10 Final Capacity 25 | 8 25 25 25 25 Final Carried 15 | 2 13 13 15 5 Class Distribution -------------------- 88% | Mutant 11% | Tank Dominant Class ---------------- Mutant | -10/Materials Mutant | -10/Subcaves Mutant | -7/Scraptown Tank | -5/Factory Resources | -11 -10 -10 -7 -5 ----------- Run | Yrd Mat Sub Scr Fac Matter Collected 986 | 187 265 287 134 113 Remotely . | . . . . . Salvage Created 891 | . 412 185 . 294 Parts 47 | . 22 14 . 11 Haulers Intercepted 1 | . 1 . . . Recyclers Shooed . | . . . . . Parts Field Recycled . | . . . . . Retrieved Matter . | . . . . . Parts Self-Destructed 7 | . . 7 . . Prevented . | . . . . . Kills | -11 -10 -10 -7 -5 ------- Run | Yrd Mat Sub Scr Fac Combat Hostiles Destroyed 17 | . 8 4 . 5 Melee 2 | . . . . 2 Guns 15 | . 8 4 . 3 Classes Destroyed 7 | . 5 1 . 1 Hauler 1 | . 1 . . . Recycler 1 | . 1 . . . Watcher 1 | . 1 . . . Swarmer 3 | . 3 . . . Grunt 9 | . 5 . . 4 Specialist 1 | . . . . 1 Subdweller 4 | . . 4 . . Best Kill Streak 3 | . 3 1 . 3 Combat Bots Only 3 | . 3 1 . 3 Max Kills in Single Turn 1 | . 1 1 . 1 Gunslinging . | . . . . . Exploded . | . . . . . Melee 1 | . . . . 1 Uniques/NPCs Destroyed . | . . . . . Combat | -11 -10 -10 -7 -5 -------- Run | Yrd Mat Sub Scr Fac Hostile Shots Fired 327 | . 40 48 . 239 Missed 73 | . 10 14 . 49 Hits 254 | . 30 34 . 190 Projectile 254 | . 30 34 . 190 Critical Strikes 9 | . 3 . . 6 Damage Taken 3895 | . 452 694 . 2749 Core 1191 | . 90 82 . 1019 Absorbed by Shields 276 | . . . . 276 Regen/Repaired (Parts) 201 | . 19 . 182 . Core Remaining (%) 65 | 100 . . 31 . Volleys Fired 101 | . 39 29 . 33 Largest 3 | . 2 2 . 3 Hottest 60 | . 40 50 . 60 Shots Fired 214 | . 78 50 . 86 Gun 203 | . 78 41 . 84 Cannon . | . . . . . Launcher 11 | . . 9 . 2 Special . | . . . . . Kinetic 203 | . 78 41 . 84 Thermal . | . . . . . Explosive 11 | . . 9 . 2 Electromagnetic . | . . . . . Robot Hit Streak 12 | . 7 12 . 7 Robot Miss Streak 2 | . 2 1 . 2 Penetration Max . | . . . . . Secondary Targets 4 | . 1 2 . 1 Max Gunslinging Chain 1 | . 1 1 . 1 Shots Hit Robots 140 | . 48 29 . 63 Core Hits 56 | . 18 11 . 27 Critical Kills . | . . . . . Critical Parts Destroyed 1 | . . . . 1 Critical Strikes 1 | . . . . 1 Smash 1 | . . . . 1 Melee Attacks 2 | . . . . 2 Impact 2 | . . . . 2 Slashing . | . . . . . Piercing . | . . . . . Sneak Attacks . | . . . . . Combat Hostiles . | . . . . . Follow-up Attacks . | . . . . . Damage Inflicted 1701 | . 497 362 . 842 Guns 1491 | . 497 362 . 632 Cannons . | . . . . . Explosions 129 | . . . . 129 Melee 81 | . . . . 81 Ramming . | . . . . . Kinetic 1491 | . 497 362 . 632 Thermal . | . . . . . Explosive 129 | . . . . 129 Electromagnetic . | . . . . . Impact 81 | . . . . 81 Slashing . | . . . . . Piercing . | . . . . . Highest Corruption 5 | . 1 1 1 5 Average Corruption 1 | . 1 1 1 3 Corruption Purged . | . . . . . Corruption Blocked . | . . . . . Effects 27 | . 3 13 10 1 Message Errors 8 | . . 5 3 . Matter Fused 7 | . 2 2 3 . Heat Flow Errors 2 | . . 1 1 . Energy Discharges 2 | . . 1 1 . Data Loss (minor) 6 | . 1 3 1 1 Data Loss (major) 1 | . . . 1 . Alerts 1 | . . 1 . . Overload Shots . | . . . . . Overflow Damage 57 | . 17 . . 40 Projectiles . | . . . . . Explosions 18 | . 17 . . 1 Melee 39 | . . . . 39 Knockbacks . | . . . . . Impact . | . . . . . Kinetic . | . . . . . Secondary . | . . . . . Self-Inflicted Damage 105 | . 63 . . 42 Shots 3 | . 1 . . 2 Rammed . | . . . . . Targets Rammed . | . . . . . Kicked . | . . . . . Crushed . | . . . . . Highest Temperature 233 | . 31 233 86 186 Average Temperature 53 | . 7 119 49 72 Received Heat Transfer 1316 | . 195 126 . 995 Siege Activations . | . . . . . Martial Activations . | . . . . . Shielding Activations . | . . . . . Robots Disrupted . | . . . . . Combat Hostiles . | . . . . . Robots Corrupted . | . . . . . Combat Hostiles . | . . . . . Parts Fried . | . . . . . Impact Corruptions 1 | . . . . 1 Robots Melted . | . . . . . Combat Hostiles . | . . . . . Parts Melted . | . . . . . Heat Transferred . | . . . . . Parts Sabotaged . | . . . . . Parts Stolen . | . . . . . Parts Stripped . | . . . . . Power Chain Reactions . | . . . . . Alert | -11 -10 -10 -7 -5 ------- Run | Yrd Mat Sub Scr Fac Maximum Alert Level . | . . . . . Low Security (%) 100 | 100 100 . . 100 Level 1 . | . . . . . Level 2 . | . . . . . Level 3 . | . . . . . Level 4 . | . . . . . Level 5 . | . . . . . High Security . | . . . . . Max Security . | . . . . . Peak Influence 92 | . 92 . . 77 Initial . | . . . . . Average 12 | . 15 . . 9 Influence Increases 462 | . 311 . . 151 Destroy 0b10 Robot/C 260 | . 160 . . 100 Destroy 0b10 Robot/NC 15 | . 15 . . . Destroy Leader 64 | . 44 . . 20 Successful Hack 11 | . 11 . . . Disable Machine 30 | . 30 . . . Destroy Structure 37 | . 21 . . 16 Lose Combat Pursuer 45 | . 30 . . 15 Influence Decreases 456 | . 311 . . 145 Time Decay 357 | . 301 . . 56 Lost Part 99 | . 10 . . 89 Squads Dispatched 5 | . 1 . . 4 Investigation 1 | . 1 . . . Extermination 1 | . . . . 1 Reinforcement 3 | . . . . 3 Assault . | . . . . . Garrison . | . . . . . Intercept . | . . . . . Searches Triggered . | . . . . . Construction Impeded . | . . . . . Haulers Reinforced . | . . . . . Active Scanning Responses . | . . . . . Cargo Convoy Interrupts . | . . . . . Stealth | -11 -10 -10 -7 -5 --------- Run | Yrd Mat Sub Scr Fac Distress Signals 1 | . 1 . . . Communications Jammed . | . . . . . Distress Signals . | . . . . . Times Spotted 35 | . 14 9 . 12 Peak Tracking Total 5 | . 3 5 . 3 Tactical Retreats 2 | . 1 . . 1 Traps | -11 -10 -10 -7 -5 ------- Run | Yrd Mat Sub Scr Fac Traps Triggered 3 | . 3 . . . Indirectly . | . . . . . Trap Hack Attempts . | . . . . . Triggered . | . . . . . Disarmed . | . . . . . Reprogrammed . | . . . . . Reused . | . . . . . Traps Extracted . | . . . . . Installed . | . . . . . Triggered . | . . . . . Machines | -11 -10 -10 -7 -5 ---------- Run | Yrd Mat Sub Scr Fac Machines Disabled 2 | . 2 . . . Max in Single Turn 2 | . 2 . . . Machines Repaired . | . . . . . Machines Dismantled . | . . . . . Machines Sabotaged . | . . . . . Overloaded Fab Kills . | . . . . . Hacking | -11 -10 -10 -7 -5 --------- Run | Yrd Mat Sub Scr Fac Machines Accessed 10 | . 5 1 3 1 Terminals 5 | . 4 . . 1 Fabricators . | . . . . . Repair Stations 1 | . 1 . . . Recycling Units . | . . . . . Scanalyzers . | . . . . . Garrison Access . | . . . . . Total Hacks 39 | . 13 3 21 2 Successful 30 | . 6 3 21 . Failed 9 | . 7 . . 2 Catastrophic 3 | . 2 . . 1 Database Lockouts . | . . . . . Manual 3 | . 3 . . . Terminals 12 | . 10 . . 2 Fabricators . | . . . . . Repair Stations 3 | . 3 . . . Recycling Units . | . . . . . Scanalyzers . | . . . . . Garrison Access . | . . . . . Terminal Hacks 28 | . 4 3 21 . Record 24 | . . 3 21 . Alert Level 1 | . 1 . . . Hauler Manifests 2 | . 2 . . . Zone Layout 1 | . 1 . . . Fabricator Hacks . | . . . . . Repair Station Hacks 2 | . 2 . . . Scan Component 1 | . 1 . . . Repair 1 | . 1 . . . Recycling Unit Hacks . | . . . . . Scanalyzer . | . . . . . Garrison Access Hacks . | . . . . . Unauthorized Hacks . | . . . . . Terminals . | . . . . . Fabricators . | . . . . . Repair Stations . | . . . . . Recycling Units . | . . . . . Scanalyzers . | . . . . . Garrison Access . | . . . . . Data Cores Recovered . | . . . . . Used . | . . . . . Hacking Detections 5 | . 4 . . 1 Full Trace Events 1 | . 1 . . . Feedback Events . | . . . . . Feedback Blocked . | . . . . . Robot Schematics Acquired . | . . . . . Robots Built . | . . . . . Authchips . | . . . . . Time . | . . . . . Total Robot Build Rating . | . . . . . Part Schematics Acquired . | . . . . . Parts Built . | . . . . . Authchips . | . . . . . Time . | . . . . . Total Part Build Rating . | . . . . . Parts Repaired 1 | . 1 . . . Time 38 | . 38 . . . Parts Recycled . | . . . . . Recycled Matter . | . . . . . Retrieved Matter . | . . . . . Retrieved Components . | . . . . . Parts Scanalyzed . | . . . . . Part Schematics Acquired . | . . . . . Parts Damaged . | . . . . . Bothacking | -11 -10 -10 -7 -5 ------------ Run | Yrd Mat Sub Scr Fac Used RIF Installer . | . . . . . Robots Hacked . | . . . . . Non-combat . | . . . . . Combat . | . . . . . Robot Hacks Applied . | . . . . . Relay Couplers Released . | . . . . . Fabnet Peak Effective % . | . . . . . Robots Rewired . | . . . . . Allies Hacked . | . . . . . Hacks Repelled . | . . . . . Allies | -11 -10 -10 -7 -5 -------- Run | Yrd Mat Sub Scr Fac Total Allies . | . . . . . Largest Group . | . . . . . Highest-Rated Group . | . . . . . Highest-Rated Ally . | . . . . . Total Orders . | . . . . . Ally Attacks . | . . . . . Total Damage . | . . . . . Kills . | . . . . . Allies Corrupted . | . . . . . Allies Melted . | . . . . . Intel | -11 -10 -10 -7 -5 ------- Run | Yrd Mat Sub Scr Fac Active Infowar (turns) 746 | . 583 . . 163 Optics 583 | . 583 . . . Seismic 163 | . . . . 163 Robot Analysis Total . | . . . . . Derelict Logs Recovered . | . . . . . Drone Launches . | . . . . . Drone Recoveries . | . . . . . Exploration | -11 -10 -10 -7 -5 ------------- Run | Yrd Mat Sub Scr Fac Turns Passed 5532 | 56 1385 1542 1839 710 Spaces Moved 1789 | 30 477 307 769 206 Core 24 | 4 . 20 . . Treads 638 | 26 477 135 . . Legs 1123 | . . 152 769 202 Wheels . | . . . . . Hover . | . . . . . Flight 4 | . . . . 4 Fastest Speed 50 | 50 160 260 190 194 Average Speed 271 | 145 228 439 237 264 Slowest Speed 1500 | 160 480 1500 260 1005 Overloaded Moves . | . . . . . Propulsion Burnouts . | . . . . . Robots Hopped . | . . . . . Potential Cave-ins . | . . . . . Cave-ins Triggered . | . . . . . Exploration Rate (%) 31 | 4 69 17 58 9 Regions Visited 4 Branch Regions 2 Pre-discovered Areas 2 | . . 1 1 . Known Exits Taken 3 | . 1 1 1 . Unknown Exits Taken 1 | 1 . . . . Scrap Searched 3 | . . . 3 . Spaces Dug . | . . . . . Terrain Destroyed 92 | . 21 59 . 12 Melee . | . . . . . Projectile . | . . . . . AOE 92 | . 21 59 . 12 Terrain Rammed . | . . . . . Walls Destroyed . | . . . . . Machines Disabled . | . . . . . Actions | -11 -10 -10 -7 -5 --------- Run | Yrd Mat Sub Scr Fac Total 2290 | 43 709 450 781 307 Wait 276 | 2 162 92 . 20 Move 1785 | 29 476 306 768 206 Hop . | . . . . . Pick Up 47 | 7 19 8 4 9 Fast Attach 1 | . . . . 1 Attach 39 | 5 4 7 1 22 Detach 6 | . . . 2 4 Swap 16 | . 3 6 2 5 Drop 17 | . 6 2 4 5 Fire 101 | . 39 29 . 33 Melee 2 | . . . . 2 Ram . | . . . . . Kick . | . . . . . Crush . | . . . . . Escape Stasis . | . . . . . Rewire . | . . . . . Trap . | . . . . . Miscellaneous . | . . . . . Route ------- -11/Scrapyard -10/Materials (discovered 2 exits: *Mat / *Sub) -10/Subcaves -7/Scraptown -5/Factory History --------- Turn | Location | Event 8 | -11/Scrapyard | Discovered new exit (range 15) 57 | -11/Scrapyard | Entered Materials 305 | -10/Materials | Build established: Mutant 704 | -10/Materials | Repaired Lgt. Nuclear Core 1139 | -10/Materials | Discovered new exit (range 13) 1250 | -10/Materials | Identified exit to Materials 1384 | -10/Materials | Discovered new exit (range 9) 1437 | -10/Materials | Identified exit to Subcaves 1442 | -10/Materials | Entered Subcaves 1443 | -10/Subcaves | Approached by a straggling Scientist 1446 | -10/Subcaves | Shifting Twisted Machinery released Mak. Laser 2021 | -10/Subcaves | Shifting Twisted Machinery released Scrap Shield 2099 | -10/Subcaves | Ambushed by swarm of Subdwellers 2149 | -10/Subcaves | Core integrity fell below 50% 2158 | -10/Subcaves | Lost 4 allies 2226 | -10/Subcaves | Lost 5 parts (2p1n2w) 2602 | -10/Subcaves | Visited Clippyterm 2609 | -10/Subcaves | Learned location of Deep Caves (-7) 2717 | -10/Subcaves | Shifting Twisted Machinery released Battle Rifle 2978 | -10/Subcaves | Scientist uncovered a shortcut to Scraptown 2982 | -10/Subcaves | Identified exit to Scraptown 2984 | -10/Subcaves | Entered Scraptown 3188 | -7/Scraptown | Learned location of Extension (-4) 3677 | -7/Scraptown | Heard Great Nut preacher, LISTEN AND RECITE! 3719 | -7/Scraptown | Visited UFD Registry 3789 | -7/Scraptown | Visited CR-KLE's Repair Center 3807 | -7/Scraptown | CR-KLE repaired 4 parts 3852 | -7/Scraptown | Visited Spacefarers 3993 | -7/Scraptown | Visited Symbiants 4495 | -7/Scraptown | Visited Awakened 4567 | -7/Scraptown | Visited Cave Peace 4771 | -7/Scraptown | Discovered new exit (range 9) 4805 | -7/Scraptown | Identified exit to Factory 4823 | -7/Scraptown | Entered Factory 4823 | -5/Factory | Evolved 10 slots: Power x1, Propulsion x4, Utility x4, Weapon x1 5122 | -5/Factory | Build established: Tank 5515 | -5/Factory | Core integrity fell below 50% 5528 | -5/Factory | Core integrity fell below 20% 5533 | -5/Factory | Destroyed by P-70 Sage with Tesla Rifle Last Messages --------------- 05494_ Myomer Leg destroyed. 05498_ Critical hit (Burn: +37). 05500_ Lgt. Assault Rifle destroyed. 05500_ Neutrino Core destroyed. 05500_ Lgt. Assault Rifle destroyed. 05500_ Neutrino Core destroyed. 05501_ X-77 Beamer destroyed. 05504_ G-50 Soldier suffers critical hit (Smash). 05504_ Destroyed Carbon-fiber Leg. 05504_ G-50 Soldier system corrupted by crushing effect. 05504_ G-50 Soldier destroyed. 05511_ Field Propulsion Drive destroyed. 05517_ Hvy. Mace destroyed. 05519_ System corrupted: Component data lost. 05520_ Mic. Fission Core destroyed. 05523_ Sub. Machine Gun destroyed. 05527_ Imp. Deuterium Engine destroyed. 05530_ Grenade Launcher destroyed. 05530_ Destroyed Grenade Launcher. Map ----- +----------------------------------------------------+ | # # #????# #??????????????????????? | | # + !! #????# #??????????????????????? | | # # !/ ###### ########???????????????? | | # # ! + ????????? | | # # ###### ########???????????????? | | # ###########????# #??????????????????????? | | # #??????????????# #??????????????????????? | | # #??????????????# #?????????####?????????? | | + #??????????????# #????????? #????????? | | # #????????????###+#####???? ?????????? | | # #????????????# #??? ? #????????? | | #### #????????????# """ #?? #????????? | | #????????????# "T" #? # ?????? | | #????????????# # + ?????? | | #????????????# # #????????? | | #????????????# +! #????????? | | #????????????# """" # #????????? | | #????????????# """" ########### #????? | | #????????????# """" # #????? | | + ???????????# """" +% #????? | | # ??????????# %#= #????? | | +? ??????????# """ ### ########???????? | | #????????????+ """" #???#??????????????? | | #????????????# " "" #??????????????????? | | ######+###????????????# [ ##?????????????????? | | ?????????????????# x@[p= #?????????????????? | | """""?????????????????# =p% ##?????????????????? | | ???#?????????????## #?????????????????? | | """""" #?????????????? ## #?????????????????? | | #?????????????"" ??#####??????????H??????? | | """""" #???????????? Y" ????????????????????????? | | #???????????? "" ????????????????????????? | | """""" #??????????? ????????????????????????? | | #?????????? ? ????????????????????????? | | """""" #?????????+#??##?????????????????????????? | | #????????????????????????????????????????? | | #????????????????????????????????????????? | | ###+#####????????????????????????????????????????? | | #????????????????????????????????????????????? | | #????????????????????????????????????????????? | | #????????????????????????????????????????????? | | #????????????????????????????????????????????? | | ##+##????????????????????????????????????????????? | | ## ###???????????????????????????????????????????? | | [#######?????????????????????????????????????? | | T" ????????????????????????????????????? | | " ????????????????????????????????? | | #?????????????????????????????????? | | ###########?????????????????????????????????? | | ######???????????????????????????????????????????? | +----------------------------------------------------+ Best States ------------- Heat Dissipation 40 Energy Generation 33 Energy Capacity 530 Matter Stores 300 Matter Capacity 300 Sight Range 18 Terrain Scan Density 10 Armor Coverage 150 Evasion (%) 40 Recoil Reduction 2 Item Schematics ----------------- None Robot Schematics ------------------ None Fabricated ------------ Nothing Repaired ---------- Lgt. Nuclear Core | 62% | -10/Materials Alien Tech Used ----------------- None Achievements -------------- None Challenges ------------ None Game ------ Seed MetafieldPiercingTorch Manual? 0 Play Time 00:49:03 Cumulative 6.7 hours Start 2025.07.03 @ 17:46:14 End 2025.07.03 @ 18:38:29 Sessions 1 Manual Loads 0 Difficulty Rogue Special Mode None Game No. 8 Rogue 8 Adventurer 0 Explorer 0 Win Type - Total 0 Types 0/0/0/0/0/0/0/0/0/0 Lore% 5 Gallery% 8 Achievement% 12 Wizard Run 0 Options --------- Layout 1 ASCII 0 Keyboard 0 Movement Mouse Keybinds 0 Fullscreen 2 Font 16/SmallcapsGlow Map View 55x38 Zoom Use 0% Tactical HUD 1 Map Filters NONE Filters NONE Steam 1 RUN: 60099790-a70d-493d-a89f-9e41b57eed84